bitfinex-derivatives/quotes_SOLF0:USTF0_20250911
["timestamp","ask_amount","ask_price","bid_price","bid_amount"]
[1757609295984,7.54,226.24,226.16,109.76]
[1757609296277,7.54,226.21,226.16,109.84]
[1757609296482,9.74765253,226.21,226.16,109.84]
[1757609296883,9.74765253,226.21,226.17,0.08]
[1757609297084,2.20765253,226.23,226.16,109.84]
[1757609297280,2.20765253,226.23,226.17,0.08]
[1757609297579,2.20765253,226.23,226.19,0.08]
[1757609297783,2.20765253,226.23,226.19,109.66]
[1757609297981,2.20765253,226.23,226.2,0.08]
[1757609300286,9.74765253,226.23,226.2,0.08]
[1757609300483,9.74765253,226.23,226.19,64.92]
[1757609300988,9.74765253,226.23,226.2,0.08]
[1757609300989,100.0,226.23,226.2,0.08]
[1757609301186,100.0,226.23,226.19,64.92]
[1757609301585,100.0,226.23,226.2,0.08]
[1757609302278,100.0,226.23,226.19,64.92]
[1757609302483,100.0,226.23,226.2,0.08]
[1757609302884,100.0,226.23,226.19,64.92]
[1757609303189,100.0,226.23,226.2,0.08]
[1757609303484,100.0,226.23,226.19,64.92]
[1757609303689,100.0,226.23,226.2,0.08]
[1757609303991,100.0,226.23,226.19,64.92]
[1757609304187,100.0,226.23,226.2,0.08]
[1757609304391,100.0,226.23,226.19,64.92]
[1757609304591,100.0,226.23,226.2,0.08]
[1757609305291,100.0,226.23,226.19,64.92]
[1757609305892,100.0,226.23,226.2,0.08]
[1757609306891,100.0,226.23,226.19,64.92]
[1757609307091,100.0,226.23,226.2,0.08]
[1757609307792,107.47,226.23,226.21,109.5]
[1757609307991,107.47,226.23,226.22,0.07]
[1757609307992,100.0,226.23,226.22,0.07]
[1757609308389,100.0,226.23,226.22,32.2]
[1757609310095,100.0,226.23,226.21,65.48]
[1757609310495,100.0,226.23,226.21,100.5]
[1757609310796,107.47,226.23,226.2,109.4]
[1757609311096,7.47,226.22,226.2,109.4]
[1757609311494,7.47,226.22,226.16,0.07]
[1757609311696,7.47,226.22,226.17,109.36]
[1757609311891,7.47,226.22,226.13,0.07]
[1757609312093,7.47,226.22,226.14,109.36]
[1757609313795,7.47,226.22,226.13,0.07]
[1757609314097,7.47,226.22,226.15,109.38]
[1757609316294,100.0,226.23,226.16,0.07]
[1757609316493,100.0,226.23,226.17,0.07]
[1757609317992,100.0,226.23,226.2,2.20765253]
[1757609318194,100.0,226.23,226.22,0.07]
[1757609318792,99.94,226.23,226.22,0.51]
[1757609319298,99.94,226.23,226.22,0.07]
[1757609320000,94.94,226.23,226.22,0.07]
[1757609320594,94.94,226.23,226.22,62.07]
[1757609320999,94.94,226.23,226.22,62.0]
[1757609321300,94.94,226.23,226.22,171.76]
[1757609322098,94.94,226.23,226.22,62.0]
[1757609322308,94.94,226.23,226.22,98.58]
[1757609323302,94.94,226.23,226.16,7.41301873]
[1757609323598,2.20765253,226.22,226.15,7.41301873]
[1757609323797,2.20765253,226.22,226.16,109.76]
[1757609324307,102.41,226.23,226.16,109.76]
[1757609324603,104.61765253,226.23,226.16,109.76]
[1757609324993,104.61765253,226.23,226.17,109.74]
[1757609325193,7.47,226.22,226.13,7.41301873]
[1757609325398,9.67765253,226.2,226.14,109.74]
[1757609325599,9.67765253,226.2,226.12,7.41301873]
[1757609325899,7.47,226.19,226.13,109.74]
[1757609326396,2.20765253,226.2,226.14,109.8]
[1757609326599,2.20765253,226.16,226.14,109.8]
[1757609326800,2.20765253,226.16,226.11,297.0]
[1757609326998,7.47,226.12,226.11,297.0]
[1757609327196,7.47,226.12,226.11,406.82]
[1757609328503,7.47,226.12,226.11,406.84]
[1757609328709,7.47,226.12,226.11,109.84]
[1757609329007,7.47,226.12,226.03,62.0]
[1757609329309,7.47,226.12,226.04,109.82]
[1757609330008,9.67765253,226.12,226.04,109.82]
[1757609330203,7.47,226.12,226.04,109.82]
[1757609330398,9.67765253,226.12,226.04,109.82]
[1757609332408,7.47,226.12,226.05,62.0]
[1757609332609,9.67765253,226.12,226.05,62.0]
[1757609333204,2.20765253,226.16,226.05,62.0]
[1757609335411,2.20765253,226.17,226.05,62.0]
[1757609336804,7.47,226.16,226.06,93.26]
[1757609337014,2.20765253,226.14,226.02,8.1827344]
[1757609337215,7.47,226.16,226.04,2.20765253]
[1757609337411,7.47,226.16,226.05,0.02]
[1757609339917,7.47,226.16,226.07,62.0]
[1757609340112,7.51,226.19,226.07,62.0]
[1757609340319,7.51,226.15,226.05,0.02]
[1757609340513,7.51,226.15,226.06,83.22]
[1757609343216,7.51,226.15,226.06,145.22]
[1757609344022,3.4479111,226.19,226.07,0.02]
[1757609344322,10.9579111,226.21,226.07,0.02]
[1757609345916,7.51,226.21,226.07,0.02]
[1757609346927,7.51,226.21,226.09,0.02]
[1757609350332,7.51,226.21,226.1,62.0]
[1757609350534,7.51,226.22,226.1,62.0]
[1757609351033,98.3879111,226.23,226.1,62.0]
[1757609351633,3.4479111,226.19,226.1,62.0]
[1757609351833,7.51,226.18,226.11,109.62]
[1757609355338,7.51,226.18,226.12,109.54]
[1757609366444,7.51,226.18,226.11,0.02]
[1757609366743,7.51,226.18,226.12,109.24]
[1757609367139,94.94,226.23,226.13,0.02]
[1757609369240,94.94,226.23,226.14,109.58]
[1757609369445,94.94,226.23,226.15,109.58]
[1757609370345,94.94,226.23,226.12,7.41301873]
[1757609370549,7.18,226.22,226.13,63.6]
[1757609370746,7.18,226.22,226.11,7.41301873]
[1757609370949,7.18,226.22,226.14,109.54]
[1757609371347,94.94,226.23,226.11,7.41301873]
[1757609371546,94.94,226.23,226.15,109.54]
[1757609372150,94.94,226.23,226.16,7.41301873]
[1757609372352,94.94,226.23,226.15,116.95301873]
[1757609372551,94.94,226.23,226.14,7.41301873]
[1757609372751,3.4479111,226.22,226.15,109.54]
[1757609372950,7.18,226.21,226.15,109.54]
[1757609373152,7.18,226.21,226.1,7.41301873]
[1757609373554,7.18,226.21,226.11,109.64]
[1757609374352,3.4479111,226.22,226.11,109.64]
[1757609374552,7.18,226.2,226.11,109.64]
[1757609375453,7.18,226.2,226.12,109.62]
[1757609375854,7.18,226.2,226.11,62.0]
[1757609376152,7.18,226.21,226.12,109.6]
[1757609376353,3.4479111,226.22,226.13,109.6]
[1757609376655,3.4479111,226.22,226.14,109.6]
[1757609377457,7.18,226.21,226.14,109.6]
[1757609377657,3.4479111,226.22,226.14,109.6]
[1757609378060,7.18,226.21,226.15,109.54]
[1757609379153,3.4479111,226.22,226.09,62.0]
[1757609379355,7.18,226.15,226.06,297.06]
[1757609380153,3.4479111,226.16,226.06,297.06]
[1757609380755,7.18,226.15,226.06,297.06]
[1757609381459,3.4479111,226.16,226.06,297.06]
[1757609382164,10.6279111,226.12,226.06,297.06]
[1757609382567,7.18,226.11,226.07,109.74]
[1757609383262,7.18,226.11,226.06,297.06]
[1757609383461,7.18,226.11,226.07,109.72]
[1757609383764,3.4479111,226.12,226.07,109.72]
[1757609383967,7.18,226.11,226.07,109.72]
[1757609384470,3.4479111,226.12,226.08,109.72]
[1757609384760,7.18,226.11,226.06,297.06]
[1757609384960,3.4479111,226.12,226.06,109.68]
[1757609385359,7.18,226.11,226.06,109.68]
[1757609385566,3.4479111,226.12,226.06,109.68]
[1757609385867,10.6279111,226.12,226.06,109.68]
[1757609387168,7.18,226.12,226.0,62.0]
[1757609387369,7.18,226.12,226.01,109.7]
[1757609389861,7.18,226.12,226.0,62.0]
[1757609390061,3.4479111,226.15,226.01,73.04]
[1757609390267,7.18,226.1,226.01,73.04]
[1757609392066,7.18,226.1,226.0,62.0]
[1757609392272,7.18,226.1,226.01,89.4]
[1757609393171,7.18,226.1,226.02,109.64]
[1757609394865,7.18,226.1,225.93,297.04]
[1757609395070,7.18,226.1,225.94,109.58]
[1757609395274,7.18,226.1,225.96,0.76996261]
[1757609395970,7.18,226.1,225.97,109.56]
[1757609396374,10.6279111,226.07,225.98,109.54]
[1757609397271,10.6279111,226.07,225.99,0.03]
[1757609397871,10.6279111,226.07,225.99,40.55]
[1757609398071,10.6279111,226.07,225.99,0.03]
[1757609398276,10.6279111,226.07,225.99,40.49]
[1757609398476,10.6279111,226.07,225.99,81.09]
[1757609400376,2.20959475,226.04,226.0,0.03]
[1757609400576,2.20959475,226.04,225.95,0.03]
[1757609400776,2.20959475,226.04,225.97,0.03]
[1757609401579,2.20959475,226.04,225.98,109.46]
[1757609401974,2.20959475,226.04,225.97,0.03]
[1757609402281,2.20959475,226.01,225.95,0.03]
[1757609402480,2.20959475,226.01,225.98,0.03]
[1757609402781,6.86,226.0,225.94,0.03]
[1757609402982,8.62,226.12,225.94,0.03]
[1757609402983,9.06959475,225.98,225.94,0.03]
[1757609403375,6.86,226.17,225.92,0.03]
[1757609403571,2.20959475,226.0,225.92,0.03]
[1757609403778,6.86,226.04,225.92,0.03]
[1757609403979,2.20959475,226.01,225.92,0.03]
[1757609404282,9.06959475,226.01,225.92,0.03]
[1757609404680,0.03245623,225.99,225.95,0.03]
[1757609405075,0.03245623,225.99,225.94,0.03118284]
[1757609405279,0.03245623,225.99,225.95,0.03]
[1757609405580,0.03245623,225.99,225.94,0.03118284]
[1757609405978,0.03245623,225.99,225.95,0.03]
[1757609406280,0.00245623,225.99,225.95,0.03]
[1757609406481,0.00245623,225.99,225.94,0.03118284]
[1757609406682,0.00245623,225.99,225.96,2.20959475]
[1757609406874,0.00245623,225.99,225.97,109.8]
[1757609407982,0.00245623,225.99,225.98,0.44]
[1757609408483,0.00245623,225.99,225.98,109.76]
[1757609409281,0.00245623,225.99,225.98,171.76]
[1757609409472,0.00245623,225.99,225.98,62.0]
[1757609409679,0.00245623,225.99,225.98,171.76]
[1757609410987,0.00245623,225.99,225.98,62.0]
[1757609411192,0.00245623,225.99,225.98,171.7]
[1757609411380,0.00245623,225.99,225.94,297.23118284]
[1757609411583,0.00245623,225.99,225.95,109.72]
[1757609412382,0.00245623,225.99,225.94,297.23118284]
[1757609412582,0.00245623,225.99,225.95,109.68]
[1757609413288,0.00245623,225.99,225.96,109.68]
[1757609414488,0.00245623,225.99,225.97,62.0]
[1757609415077,0.00245623,225.99,225.94,297.23118284]
[1757609415481,0.00245623,225.99,225.95,109.62]
[1757609416783,0.00245623,225.99,225.96,109.58]
[1757609416978,0.00245623,225.99,225.94,297.23118284]
[1757609417191,0.00245623,225.99,225.95,109.58]
[1757609417388,6.86245623,225.99,225.95,109.58]
[1757609417583,0.00245623,225.99,225.96,109.56]
[1757609417986,6.86245623,225.99,225.96,109.56]
[1757609418184,0.00245623,225.99,225.96,109.56]
[1757609418385,6.86,225.96,225.94,297.23118284]
[1757609418586,6.86,225.96,225.95,109.58]
[1757609419584,6.86,225.96,225.94,297.23118284]
[1757609419785,2.20959475,225.97,225.95,109.64]
[1757609419985,6.86,225.96,225.95,109.64]
[1757609421487,2.20959475,225.96,225.94,0.03118284]
[1757609421785,6.86,225.95,225.94,109.63118284]
[1757609422586,6.86,225.95,225.94,0.03118284]
[1757609422782,6.86,225.95,225.93,109.6]
[1757609422987,2.20959475,225.96,225.93,109.6]
[1757609422988,9.06959475,225.94,225.93,109.6]
[1757609424193,6.86,225.94,225.93,109.6]
[1757609424493,9.06959475,225.94,225.93,109.6]
[1757609424693,6.86,225.94,225.93,109.6]
[1757609424991,9.06959475,225.94,225.93,109.6]
[1757609427692,6.86,225.94,225.93,109.6]
[1757609427892,9.06959475,225.94,225.93,109.6]
[1757609430196,9.06959475,225.94,225.83,62.0]
[1757609430398,9.06959475,225.94,225.84,109.44]
[1757609432096,2.20959475,225.91,225.84,109.44]
[1757609432596,2.20959475,225.85,225.81,109.4]
[1757609432798,9.71959475,225.85,225.81,109.4]
[1757609432991,2.20959475,225.85,225.81,109.4]
[1757609433192,7.51,225.84,225.81,109.4]
[1757609433699,2.20959475,225.85,225.81,109.4]
[1757609434101,7.51,225.85,225.81,109.4]
[1757609434293,2.20959475,225.85,225.81,109.4]
[1757609434494,9.71959475,225.85,225.81,109.4]
[1757609435093,2.20959475,225.82,225.73,13.52801151]
[1757609435288,2.20959475,225.82,225.68,171.74264158]
[1757609435494,2.20959475,225.8,225.71,0.77079826]
[1757609437488,2.20959475,225.8,225.72,109.54]
[1757609438187,7.51,225.82,225.72,109.54]
[1757609438395,2.20959475,225.83,225.72,109.54]
[1757609438997,2.20959475,225.83,225.73,62.0]
[1757609439400,9.71959475,225.83,225.73,62.0]
[1757609439596,7.51,225.83,225.73,62.0]
[1757609439796,2.20959475,225.81,225.73,62.0]
[1757609441898,7.51,225.87,225.73,62.0]
[1757609442097,2.20959475,225.82,225.73,62.0]
[1757609443404,2.20959475,225.83,225.73,62.0]
[1757609443602,6.66,225.95,225.73,62.0]
[1757609443603,7.51,225.85,225.73,62.0]
[1757609443897,112.96713379,225.98,225.73,64.20959475]
[1757609443898,2.20959475,225.84,225.73,64.20959475]
[1757609444106,2.20959475,225.87,225.73,64.20959475]
[1757609446096,2.20959475,225.87,225.74,90.56]
[1757609446710,2.20959475,225.87,225.73,64.20959475]
[1757609447607,2.20959475,225.86,225.73,64.20959475]
[1757609448498,2.20959475,225.86,225.74,91.08]
[1757609448697,2.20959475,225.86,225.73,64.20959475]
[1757609449504,2.20959475,225.86,225.74,90.82]
[1757609449700,2.20959475,225.86,225.73,64.20959475]
[1757609450310,7.51,225.87,225.73,64.20959475]
[1757609450510,2.20959475,225.86,225.73,64.20959475]
[1757609451012,2.20959475,225.86,225.74,90.46]
[1757609451512,2.20959475,225.86,225.73,64.20959475]
[1757609451714,2.20959475,225.83,225.74,77.06]
[1757609452109,7.51,225.85,225.74,77.06]
[1757609452315,2.20959475,225.82,225.74,77.06]
[1757609452614,2.20959475,225.82,225.75,109.44]
[1757609453011,2.20959475,225.83,225.75,109.44]
[1757609453518,9.71959475,225.83,225.73,62.0]
[1757609453706,9.71959475,225.83,225.74,109.42]
[1757609456807,7.51,225.83,225.74,109.42]
[1757609457013,126.26713379,225.98,225.73,62.0]
[1757609457014,2.20959475,225.85,225.73,62.0]
[1757609457213,2.20959475,225.85,225.74,109.4]
[1757609457611,2.20959475,225.85,225.73,62.0]
[1757609457813,2.20959475,225.82,225.74,89.68]
[1757609458211,2.20959475,225.82,225.75,109.4]
[1757609460315,2.20959475,225.85,225.75,109.4]
[1757609460514,2.20959475,225.88,225.75,2.20959475]
[1757609460720,2.20959475,225.85,225.73,69.41301873]
[1757609460919,9.09959475,225.85,225.74,96.02]
[1757609461115,2.20959475,225.84,225.73,62.0]
[1757609461422,2.20959475,225.81,225.73,62.0]
[1757609461718,2.20959475,225.81,225.74,105.48]
[1757609462220,2.20959475,225.81,225.75,109.48]
[1757609462420,6.89,225.82,225.75,109.48]
[1757609465315,3.4596479,225.83,225.75,109.48]
[1757609465517,3.4596479,225.87,225.75,109.48]
[1757609465714,10.3496479,225.9,225.73,7.41301873]
[1757609466122,10.3496479,225.9,225.76,62.0]
[1757609466526,6.89,225.89,225.77,109.44]
[1757609467021,6.89,225.89,225.76,62.0]
[1757609467211,6.89,225.89,225.77,109.44]
[1757609470324,6.89,225.89,225.78,109.4]
[1757609472523,6.89,225.89,225.76,69.41301873]
[1757609472723,6.89,225.89,225.77,109.4]
[1757609473624,6.89,225.89,225.77,116.81301873]
[1757609473823,3.4596479,225.9,225.77,116.81301873]
[1757609474226,6.89,225.93,225.78,7.41301873]
[1757609474425,3.4596479,225.92,225.78,7.41301873]
[1757609474923,6.89,225.91,225.79,7.41301873]
[1757609475124,3.4596479,225.92,225.8,109.4]
[1757609475327,6.89,225.95,225.78,7.41301873]
[1757609475629,6.89,225.88,225.77,7.41301873]
[1757609475929,6.89,225.88,225.78,94.34]
[1757609476125,6.89,225.88,225.77,109.4]
[1757609476328,10.3496479,225.85,225.77,109.4]
[1757609476525,6.89,225.85,225.77,109.4]
[1757609477428,6.89,225.85,225.74,7.41301873]
[1757609477629,6.89,225.85,225.75,109.4]
[1757609477830,6.89,225.85,225.74,7.41301873]
[1757609478025,6.89,225.85,225.75,109.4]
[1757609478230,6.89,225.85,225.76,109.4]
[1757609478525,6.89,225.86,225.74,7.41301873]
[1757609478724,3.4596479,225.87,225.76,109.4]
[1757609479123,6.89,225.86,225.76,109.4]
[1757609480230,6.89,225.86,225.73,7.41301873]
[1757609480626,6.89,225.86,225.72,166.39292366]
[1757609480627,3.4596479,225.83,225.72,173.80594239]
[1757609480831,6.89,225.82,225.72,173.80594239]
[1757609481034,6.89,225.82,225.73,109.4]
[1757609482630,6.89,225.82,225.74,109.4]
[1757609484530,6.89,225.82,225.72,166.39292366]
[1757609484732,6.89,225.82,225.73,109.4]
[1757609492444,7.07,225.87,225.73,116.81301873]
[1757609492636,7.07,225.9,225.75,7.41301873]
[1757609492843,7.07,225.9,225.76,7.41301873]
[1757609493540,7.07,225.9,225.77,7.41301873]
[1757609493742,7.07,225.9,225.78,47.68]
[1757609494241,7.07,225.9,225.77,7.41301873]
[1757609494449,7.07,225.9,225.76,7.41301873]
[1757609494648,7.07,225.9,225.78,38.52]
[1757609494946,7.07,225.86,225.74,7.41301873]
[1757609495141,7.07,225.86,225.75,74.72]
[1757609496245,3.4596479,225.87,225.75,74.72]
[1757609496450,7.07,225.86,225.73,7.41301873]
[1757609496651,7.07,225.82,225.74,109.4]
[1757609499748,7.07,225.86,225.74,109.4]
[1757609499950,10.5296479,225.86,225.74,109.4]
[1757609501150,3.4596479,225.88,225.75,7.41301873]
[1757609501352,3.4596479,225.88,225.76,7.41301873]
[1757609502053,7.07,225.9,225.76,7.41301873]
[1757609502455,7.07,225.9,225.77,7.41301873]
[1757609503645,7.07,225.9,225.78,7.41301873]
[1757609503844,3.4596479,225.88,225.79,38.12]
[1757609504053,7.07,225.87,225.8,38.12]
[1757609504656,7.07,225.87,225.8,74.28]
[1757609505457,7.07,225.87,225.79,108.62]
[1757609505655,7.07,225.87,225.79,109.4]
[1757609506050,7.07,225.87,225.75,7.41301873]
[1757609506357,7.07,225.87,225.76,109.38]
[1757609506559,7.07,225.87,225.77,109.38]
[1757609506853,3.4596479,225.88,225.77,109.38]
[1757609507051,7.07,225.87,225.77,109.38]
[1757609508556,7.07,225.87,225.76,109.38]
[1757609508757,3.4596479,225.88,225.76,109.38]
[1757609509160,7.07,225.87,225.76,109.38]
[1757609510548,3.4596479,225.88,225.76,109.38]
[1757609510750,7.07,225.87,225.76,109.38]
[1757609511760,7.07,225.87,225.72,173.80594239]
[1757609511957,3.4596479,225.88,225.73,109.38]
[1757609512164,7.07,225.87,225.73,109.38]
[1757609512964,7.07,225.85,225.73,109.38]
[1757609516868,3.4596479,225.86,225.73,116.79301873]
[1757609517565,10.7196479,225.86,225.73,116.79301873]
[1757609517970,10.7196479,225.86,225.73,109.38]
[1757609518171,10.7196479,225.86,225.74,109.38]
[1757609522188,7.26,225.86,225.74,109.38]
[1757609523989,7.26,225.86,225.72,173.80594239]
[1757609524188,7.26,225.86,225.73,109.38]
[1757609524385,2.21380516,225.83,225.73,109.38]
[1757609526582,7.26,225.86,225.73,116.79301873]
[1757609526885,9.47380516,225.84,225.73,109.38]
[1757609527495,7.26,225.84,225.73,109.38]
[1757609527885,2.21380516,225.82,225.72,166.39292366]
[1757609528085,2.21380516,225.82,225.73,109.38]
[1757609528288,2.21380516,225.82,225.72,166.39292366]
[1757609528483,9.86,225.95,225.71,8.18381699]
[1757609528484,7.26,225.81,225.71,8.18381699]
[1757609528693,7.26,225.74,225.64,7.41301873]
[1757609528885,2.21380516,225.72,225.67,109.38]
[1757609529288,9.47380516,225.72,225.67,109.38]
[1757609529593,2.21380516,225.71,225.67,109.38]
[1757609530387,9.47380516,225.71,225.67,109.38]
[1757609531498,7.26,225.7,225.67,109.38]
[1757609531800,7.26,225.7,225.59,7.41301873]
[1757609531991,2.21380516,225.66,225.6,76.64]
[1757609532193,2.21380516,225.66,225.61,76.64]
[1757609532393,2.21380516,225.68,225.61,76.64]
[1757609533194,7.26,225.7,225.61,76.64]
[1757609533491,2.21380516,225.69,225.61,76.64]
[1757609533688,7.26,225.76,225.61,76.64]
[1757609534087,2.21380516,225.73,225.61,78.85380516]
[1757609534687,7.26,225.72,225.62,171.4]
[1757609535191,2.21380516,225.7,225.63,109.4]
[1757609535894,7.26,225.72,225.63,109.4]
[1757609536095,2.21380516,225.69,225.57,2.21380516]
[1757609536389,9.47380516,225.69,225.58,109.4]
[1757609537591,7.26,225.65,225.58,109.4]
[1757609538399,9.47380516,225.65,225.58,109.4]
[1757609539195,9.47380516,225.65,225.43,13.27]
[1757609539196,0.44,225.65,225.49,7.41301873]
[1757609539389,7.26,225.64,225.46,7.41301873]
[1757609539700,9.47380516,225.58,225.55,0.03134808]
[1757609539886,7.26,225.56,225.55,0.03134808]
[1757609540091,7.26,225.56,225.45,7.72]
[1757609540292,7.26,225.56,225.53,0.03201529]
[1757609541099,2.2434875,225.57,225.53,0.03201529]
[1757609541298,7.26,225.56,225.53,0.03201529]
[1757609541498,7.26,225.54,225.53,0.03201529]
[1757609542596,9.47380516,225.54,225.53,0.03201529]
[1757609543499,7.26,225.54,225.53,0.03201529]
[1757609543697,0.02968234,225.57,225.53,0.03201529]
[1757609543897,2.21380516,225.56,225.53,0.03201529]
[1757609544097,7.26,225.56,225.53,0.03201529]
[1757609544401,9.47380516,225.56,225.53,0.03201529]
[1757609544699,0.02968234,225.57,225.53,0.03201529]
[1757609544903,2.2434875,225.57,225.53,0.03201529]
[1757609545097,7.26,225.56,225.53,0.03201529]
[1757609545398,2.2434875,225.57,225.53,0.03201529]
[1757609545601,7.26,225.56,225.53,0.03201529]
[1757609545795,2.2434875,225.57,225.53,0.03201529]
[1757609545998,7.26,225.56,225.53,0.03201529]
[1757609546598,2.2434875,225.57,225.53,0.03201529]
[1757609546796,9.47380516,225.54,225.53,0.03201529]
[1757609547001,9.47380516,225.54,225.36,0.03]
[1757609547200,2.21380516,225.42,225.36,0.03]
[1757609547706,2.21380516,225.43,225.36,111.19]
[1757609547906,7.26,225.45,225.36,111.19]
[1757609548102,7.32,225.49,225.37,0.06]
[1757609548302,0.02840438,225.42,225.37,0.06]
[1757609548495,0.02840438,225.42,225.36,173.16]
[1757609548695,0.02840438,225.42,225.37,0.06]
[1757609549006,0.02840438,225.42,225.36,173.16]
[1757609549403,0.02840438,225.42,225.37,0.06]
[1757609549998,2.21380516,225.41,225.36,62.0]
[1757609550304,9.53380516,225.41,225.35,0.06]
[1757609550504,7.32,225.41,225.35,0.06]
[1757609550705,9.53380516,225.4,225.35,0.06]
[1757609550901,7.32,225.39,225.31,0.06]
[1757609551104,9.53380516,225.39,225.32,28.34]
[1757609551508,0.0336822,225.38,225.32,28.34]
[1757609551908,0.0336822,225.38,225.33,0.06]
[1757609552104,0.0336822,225.38,225.32,28.34]
[1757609552911,0.0336822,225.38,225.33,0.06]
[1757609553108,0.0336822,225.38,225.32,62.0]
[1757609553304,0.0336822,225.38,225.33,105.32]
[1757609553505,0.0336822,225.38,225.32,62.0]
[1757609553810,0.0336822,225.38,225.34,111.64]
[1757609554111,0.0336822,225.38,225.35,0.06]
[1757609554811,0.0336822,225.38,225.37,0.06]
[1757609555008,9.53380516,225.46,225.37,0.06]
[1757609555909,9.53380516,225.46,225.38,111.54]
[1757609556709,9.53380516,225.46,225.37,0.06]
[1757609556910,9.53380516,225.46,225.37,49.92]
[1757609557209,2.21380516,225.43,225.37,49.92]
[1757609558507,2.21380516,225.43,225.38,111.54]
[1757609558713,9.53380516,225.43,225.38,111.54]
[1757609559013,2.21380516,225.49,225.39,0.06]
[1757609559707,7.32,225.51,225.39,0.06]
[1757609559907,9.53380516,225.51,225.4,111.52]
[1757609560101,9.53380516,225.51,225.39,0.06]
[1757609560311,9.53380516,225.48,225.4,111.5]
[1757609560505,9.53380516,225.48,225.41,111.48]
[1757609560906,9.53380516,225.48,225.39,0.06]
[1757609561114,7.32,225.44,225.4,111.56]
[1757609561611,7.32,225.44,225.38,111.56]
[1757609562011,7.32,225.52,225.39,0.06]
[1757609562211,2.21380516,225.5,225.39,0.06]
[1757609562614,2.21380516,225.5,225.4,62.0]
[1757609562815,2.21380516,225.5,225.39,0.06]
[1757609563513,2.21380516,225.5,225.39,2.27380516]
[1757609564417,9.53380516,225.52,225.39,2.27380516]
[1757609564618,7.32,225.52,225.39,2.27380516]
[1757609564913,9.53380516,225.52,225.39,2.27380516]
[1757609565118,2.21380516,225.51,225.39,2.27380516]
[1757609565420,9.53380516,225.52,225.4,0.06]
[1757609565820,7.32,225.51,225.41,111.64]
[1757609566020,2.21380516,225.5,225.4,0.06]
[1757609566221,2.21380516,225.5,225.41,48.42]
[1757609566622,7.32,225.51,225.42,91.48]
[1757609566817,2.21380516,225.48,225.42,91.48]
[1757609567020,9.53380516,225.48,225.42,111.6]
[1757609567218,7.32,225.44,225.39,111.64]
[1757609567418,2.21380516,225.45,225.39,111.64]
[1757609567616,9.53380516,225.45,225.39,111.64]
[1757609568217,9.53380516,225.45,225.38,111.64]
[1757609568421,7.32,225.45,225.34,0.06]
[1757609568623,2.21380516,225.43,225.35,111.62]
[1757609569920,7.32,225.56,225.36,0.06]
[1757609570124,2.21380516,225.48,225.37,0.06]
[1757609570329,2.21380516,225.48,225.37,2.27380516]
[1757609570527,2.21380516,225.48,225.38,0.06]
[1757609572730,2.21380516,225.48,225.39,111.58]
[1757609573028,2.21380516,225.48,225.39,173.58]
[1757609573328,2.21380516,225.48,225.38,0.06]
[1757609573530,7.32,225.47,225.39,45.92]